bitfinex-derivatives/quotes_ETHF0:USTF0_20250730
["timestamp","ask_amount","ask_price","bid_price","bid_amount"]
[1753902038888,0.53572,3733.6,3733.0,3.2078]
[1753902039087,0.53576,3733.3,3732.5,3.2078]
[1753902039288,3.2078,3733.4,3732.6,0.53585]
[1753902039688,3.2078,3733.5,3732.5,3.2078]
[1753902040091,3.2078,3733.1,3732.2,0.53591]
[1753902040388,3.2078,3733.1,3732.0,4.54767]
[1753902040593,3.2078,3733.5,3732.5,3.2078]
[1753902040893,0.53573,3733.5,3733.3,3.2078]
[1753902041091,3.2078,3733.8,3732.2,1.3398]
[1753902041092,0.53576,3733.3,3732.9,3.2078]
[1753902041292,0.53584,3732.8,3732.1,5.3513]
[1753902041493,5.88614,3734.0,3732.5,3.2078]
[1753902041791,3.2078,3733.2,3732.4,0.53589]
[1753902041994,0.53586,3732.6,3732.4,0.53589]
[1753902042294,0.53589,3732.4,3732.1,2.1435]
[1753902042488,3.2078,3732.8,3732.1,2.1435]
[1753902042489,0.53592,3732.2,3732.1,2.1435]
[1753902042994,0.53592,3732.2,3732.1,1.59046]
[1753902043188,0.53592,3732.2,3729.9,1.34062]
[1753902043189,4.54756,3732.4,3731.4,3.2078]
[1753902043396,4.54756,3732.4,3731.2,0.53605]
[1753902043588,1.33994,3731.8,3730.9,3.7439]
[1753902043784,3.2078,3731.9,3730.9,3.7439]
[1753902043785,3.2078,3731.9,3731.3,0.53605]
[1753902044189,3.2078,3731.9,3731.1,0.53607]
[1753902044190,0.53603,3731.5,3731.1,0.53607]
[1753902044398,0.53601,3731.6,3730.9,3.2078]
[1753902044600,0.53602,3731.5,3731.1,0.53608]
[1753902044792,0.53602,3731.5,3731.2,0.53605]
[1753902045096,0.53603,3731.4,3730.9,3.2078]
[1753902045297,1.34006,3731.5,3730.5,3.2078]
[1753902045589,0.53611,3730.9,3730.5,0.53615]
[1753902045793,0.53611,3730.9,3730.4,3.74397]
[1753902045994,3.2078,3731.3,3730.4,3.2078]
[1753902046193,0.5362,3730.3,3730.0,3.2078]
[1753902046389,0.53618,3730.4,3730.0,3.2078]
[1753902046586,3.2078,3730.1,3727.4,1.34153]
[1753902046791,3.53516314,3730.2,3729.9,0.53624]
[1753902046998,3.2078,3730.5,3729.9,0.53624]
[1753902047198,42.1397,3732.5,3727.5,42.556]
[1753902047199,3.2078,3730.8,3729.2,3.2078]
[1753902047394,3.2078,3729.9,3728.7,3.74422]
[1753902047693,3.2078,3730.3,3728.8,3.2078]
[1753902047894,3.2078,3730.3,3729.5,0.5363]
[1753902048097,3.2078,3730.3,3729.7,0.53627]
[1753902048398,3.2078,3730.9,3729.7,3.2078]
[1753902048596,1.33999,3731.7,3728.9,5.3532]
[1753902048597,3.2078,3730.0,3728.9,5.3532]
[1753902048793,0.53625,3729.9,3729.0,0.53637]
[1753902048992,3.2078,3730.0,3728.9,2.1454]
[1753902049491,3.2078,3730.7,3729.5,3.2078]
[1753902049891,3.2078,3730.7,3729.1,3.2078]
[1753902050092,3.2078,3730.7,3729.5,3.2078]
[1753902050499,3.2078,3730.6,3730.2,0.53619]
[1753902050691,3.2078,3730.6,3730.4,0.53617]
[1753902050893,3.2078,3731.4,3730.5,0.53616]
[1753902051200,3.2078,3731.4,3731.1,0.53607]
[1753902051397,3.2078,3731.4,3729.9,1.34063]
[1753902051594,3.2078,3731.4,3731.1,0.53607]
[1753902052392,3.2078,3731.2,3730.9,0.5361]
[1753902052689,0.38,3731.7,3731.4,0.53602]
[1753902053295,3.2078,3732.8,3732.4,0.53588]
[1753902053502,3.2078,3732.8,3730.3,3.2078]
[1753902053797,3.2078,3732.6,3731.2,3.2078]
[1753902053998,3.2078,3732.5,3731.6,3.2078]
[1753902054194,0.53603,3731.5,3730.9,0.53609]
[1753902054396,3.2078,3731.8,3731.0,0.53608]
[1753902054703,0.53603,3731.5,3730.8,0.53611]
[1753902054897,0.53603,3731.5,3730.7,3.2078]
[1753902054898,4.54777,3731.8,3730.7,3.2078]
[1753902055201,0.53613,3730.8,3730.2,3.744]
[1753902055401,0.53616,3730.6,3730.2,3.2078]
[1753902055600,4.83847106,3731.7,3729.8,3.60996094]
[1753902055601,0.53623,3730.1,3729.8,3.60996094]
[1753902055899,0.53634,3729.3,3728.9,2.1454]
[1753902056302,3.74414,3729.3,3728.9,2.1454]
[1753902056504,3.2078,3729.3,3728.9,2.1454]
[1753902056699,0.53635,3729.2,3728.9,2.1454]
[1753902057300,3.2078,3732.9,3729.8,1.34066]
[1753902057507,3.2078,3732.9,3732.0,3.2078]
[1753902057712,0.53583,3732.8,3731.6,3.2078]
[1753902057909,6.67989724,3732.8,3731.6,3.2078]
[1753902058109,3.2078,3732.5,3731.6,3.2078]
[1753902058313,3.2078,3733.4,3732.1,3.2078]
[1753902058514,3.2078,3733.4,3731.1,1.34017]
[1753902058515,0.53576,3733.3,3730.9,21.745]
[1753902058714,3.2078,3733.3,3731.8,3.2078]
[1753902058910,4.03395921,3733.2,3732.2,3.2078]
[1753902059115,3.49817921,3733.2,3732.2,3.2078]
[1753902059318,3.2078,3732.7,3732.2,3.2078]
[1753902059512,0.53586,3732.6,3731.5,3.2078]
[1753902059707,3.2078,3732.4,3730.9,3.7439]
[1753902059910,0.5359,3732.3,3730.8,3.74392]
[1753902060213,3.2078,3732.0,3730.8,3.2078]
[1753902060418,3.2078,3731.6,3730.8,3.2078]
[1753902060817,0.53607,3731.2,3730.8,3.2078]
[1753902061209,0.53613,3730.7,3729.9,3.2078]
[1753902061518,3.44661973,3730.6,3729.9,3.2078]
[1753902061720,0.53616,3730.5,3729.8,0.40216094]
[1753902061917,0.53618,3730.4,3730.0,3.2078]
[1753902062113,0.53622,3730.2,3730.0,3.2078]
[1753902062318,0.53622,3730.2,3729.9,2.1448]
[1753902062514,0.53612,3730.8,3729.9,2.1448]
[1753902062719,0.53617,3730.5,3729.9,2.1448]
[1753902062920,3.2078,3731.3,3729.9,2.1448]
[1753902063116,3.2078,3731.3,3730.1,3.2078]
[1753902063315,0.53619,3730.3,3729.9,2.1448]
[1753902063713,0.53623,3730.0,3729.8,0.40216094]
[1753902064015,3.2078,3729.9,3729.8,0.40216094]
[1753902064220,6.72158542,3729.9,3729.8,9.4e-07]
[1753902064418,6.72158542,3729.9,3728.3,3.2078]
[1753902064616,0.53631,3729.5,3728.9,3.2078]
[1753902064815,0.53631,3729.5,3728.8,3.2078]
[1753902065120,0.53635,3729.3,3728.5,3.2078]
[1753902065322,0.53637,3729.1,3728.5,3.2078]
[1753902065622,0.53637,3729.1,3728.1,3.2078]
[1753902065817,0.53635,3729.2,3728.9,3.2078]
[1753902066122,3.2078,3730.0,3728.9,3.2078]
[1753902066324,0.53627,3729.8,3729.0,0.53638]
[1753902066524,0.53625,3729.9,3729.1,0.53636]
[1753902066725,0.53622,3730.1,3729.5,3.2078]
[1753902066919,0.53636,3729.1,3729.0,3.2078]
[1753902067119,3.74416,3729.1,3728.8,0.43800615]
[1753902067416,3.74416,3729.1,3728.8,6.15e-06]
[1753902067417,7.27507068,3729.1,3728.8,6.15e-06]
[1753902067622,0.53651,3728.1,3727.2,3.74443]
[1753902067819,0.53651,3728.1,3727.2,3.2078]
[1753902068221,0.53662,3727.3,3727.2,3.2078]
[1753902068425,0.53661,3727.4,3727.2,3.2078]
[1753902068725,0.53661,3727.4,3726.8,0.40248467]
[1753902069224,0.5366,3727.5,3726.8,0.40248467]
[1753902069615,0.53664,3727.2,3726.8,0.40248467]
[1753902070019,3.74443,3727.3,3726.8,0.40248467]
[1753902070222,3.2078,3727.3,3726.8,0.40248467]
[1753902070428,3.53412684,3727.2,3726.8,0.40248467]
[1753902070819,3.74443,3727.3,3726.8,0.40248467]
[1753902071019,3.74443,3727.3,3724.5,1.34257]
[1753902071020,1.34166,3727.1,3725.3,3.2078]
[1753902071318,3.2078,3726.4,3725.5,3.2078]
[1753902071517,3.2078,3726.0,3725.1,3.2078]
[1753902071930,0.53687,3725.6,3725.1,3.2078]
[1753902072121,3.2078,3725.6,3724.6,3.2078]
[1753902072316,3.2078,3725.6,3724.6,3.74481]
[1753902072529,3.2078,3725.6,3724.9,0.53695]
[1753902072718,3.2078,3725.6,3725.1,0.53694]
[1753902072921,3.2078,3726.8,3726.1,0.53679]
[1753902073127,3.2078,3727.6,3726.3,3.2078]
[1753902073323,3.2078,3727.2,3726.4,0.53675]
[1753902073528,3.2078,3727.6,3726.9,3.2078]
[1753902073730,3.2078,3728.5,3727.2,0.53663]
[1753902073924,3.2078,3728.5,3727.4,0.5366]
[1753902074224,3.2078,3728.5,3727.3,3.2078]
[1753902074225,3.52635507,3728.4,3727.6,0.53658]
[1753902074423,0.38,3728.7,3727.8,0.53655]
[1753902074622,3.2078,3728.5,3727.8,0.53655]
[1753902075028,3.2078,3728.1,3727.0,3.2078]
[1753902075224,3.2078,3727.7,3727.0,3.2078]
[1753902075429,3.2078,3727.3,3725.7,3.2078]
[1753902075625,0.53679,3726.2,3725.7,3.2078]
[1753902075924,3.2078,3726.4,3725.7,3.2078]
[1753902076128,3.2078,3726.4,3725.5,3.2078]
[1753902076424,3.56478624,3726.3,3725.5,3.2078]
[1753902076634,3.2078,3726.4,3726.1,0.53679]
[1753902076929,0.53686,3725.7,3725.3,3.2078]
[1753902077130,0.53686,3725.7,3724.9,0.53696]
[1753902077331,0.53688,3725.6,3725.3,0.16507271]
[1753902077531,0.53686,3725.7,3725.3,0.16507271]
[1753902077830,0.53689,3725.5,3725.3,0.16507271]
[1753902078032,0.53685,3725.7,3725.3,0.16507271]
[1753902078227,3.2078,3725.4,3725.3,0.16507271]
[1753902078622,0.53687,3725.6,3725.3,0.16507271]
[1753902079029,0.53685,3725.7,3725.3,0.16507271]
[1753902079332,3.04272729,3725.4,3724.2,3.74486]
[1753902079532,3.04272729,3725.4,3724.2,0.53706]
[1753902079533,0.53698,3724.9,3724.2,0.53706]
[1753902079825,0.53699,3724.8,3724.1,3.2078]
[1753902080021,3.2078,3725.0,3724.1,3.2078]
[1753902080430,0.53701,3724.6,3724.1,3.2078]
[1753902080631,0.53699,3724.8,3724.1,3.74487]
[1753902081230,0.53705,3724.4,3723.8,0.40280892]
[1753902081532,0.53702,3724.5,3723.8,0.93991892]
[1753902081732,0.53706,3724.3,3723.8,0.40280892]
[1753902082033,3.2078,3724.0,3723.8,0.93991892]
[1753902082225,0.53704,3724.4,3723.8,0.40280892]
[1753902082226,0.53708,3724.1,3723.8,0.40280892]
[1753902082422,3.2078,3724.0,3723.8,0.40280892]
[1753902082825,0.53705,3724.3,3723.8,0.40280892]
[1753902083025,3.74485,3724.4,3723.8,0.40280892]
[1753902083230,3.2078,3724.4,3723.8,0.40280892]
[1753902083425,0.5371,3724.1,3723.8,0.40280892]
[1753902083633,3.2078,3724.4,3723.8,0.40280892]
[1753902083827,0.53707,3724.2,3723.8,0.40280892]
[1753902084132,3.2078,3725.3,3723.8,3.61060892]
[1753902084330,3.2078,3724.5,3723.9,3.7449]
[1753902084526,3.2078,3725.1,3723.9,0.53711]
[1753902084726,4.04042882,3724.4,3723.8,0.40280892]
[1753902084931,3.2078,3724.6,3723.8,0.40280892]
[1753902085228,0.537,3724.7,3724.2,0.53707]
[1753902085428,3.2078,3726.2,3724.4,3.2078]
[1753902085632,3.74466,3725.7,3725.1,0.53693]
[1753902085834,0.53691,3725.3,3724.7,0.53699]
[1753902086032,0.53691,3725.3,3723.8,1.74559892]
[1753902086033,3.2078,3725.3,3723.8,0.40280892]
[1753902086227,3.2078,3725.2,3724.3,3.2078]
[1753902086432,3.2078,3725.6,3725.1,0.53693]
[1753902086627,0.53695,3725.1,3724.7,3.74479]
[1753902086832,0.53695,3725.0,3724.7,3.2078]
[1753902087031,1.34241,3725.0,3723.8,0.40280892]
[1753902087236,3.2078,3724.7,3723.8,0.93992892]
[1753902087432,3.2078,3725.5,3724.5,3.2078]
[1753902087730,3.2078,3725.5,3725.2,0.53692]
[1753902087930,3.2078,3725.6,3723.8,3.61060892]
[1753902088135,3.2078,3726.2,3724.7,3.2078]
[1753902088331,3.2078,3726.1,3726.0,0.5368]
[1753902088525,3.2078,3726.2,3725.2,3.2078]
[1753902088831,3.2078,3725.7,3725.0,3.2078]
[1753902089031,3.74467,3725.6,3724.8,0.53697]
[1753902089230,3.2078,3725.6,3724.4,1.3426]
[1753902089427,3.2078,3726.0,3725.8,0.53683]
[1753902089629,0.53687,3725.6,3725.2,0.53692]
[1753902089831,0.53686,3725.7,3725.4,0.53689]
[1753902090032,1.34192,3726.3,3725.4,0.53689]
[1753902090227,0.53677,3726.3,3725.3,0.53691]
[1753902090428,0.53678,3726.2,3725.9,0.53681]
[1753902090832,0.19359225,3727.0,3725.0,1.34238]
[1753902090833,3.2078,3727.1,3726.2,0.53677]
[1753902091134,3.74446,3727.1,3726.6,0.53671]
[1753902091329,0.53667,3727.0,3726.4,0.53674]
[1753902091531,3.2078,3727.1,3726.8,0.53668]
[1753902091725,0.53666,3727.0,3726.2,3.2078]
[1753902091932,0.53661,3727.4,3726.9,0.53667]
[1753902092133,3.2078,3728.0,3727.9,0.53653]
[1753902092336,3.2078,3728.9,3727.9,0.53653]
[1753902092633,3.2078,3728.9,3728.4,0.53645]
[1753902092932,3.2078,3728.9,3727.9,1.34134]
[1753902092933,3.2078,3729.3,3728.1,3.2078]
[1753902093130,1.53485724,3729.7,3728.6,0.53643]
[1753902093131,3.2078,3729.7,3728.6,0.53643]
[1753902093331,3.2078,3730.5,3728.5,3.2078]
[1753902093627,3.2078,3730.5,3729.5,3.2078]
[1753902093833,0.53618,3730.4,3729.5,3.2078]
[1753902094036,3.2078,3730.5,3729.5,3.2078]
[1753902094237,0.53619,3730.3,3729.6,0.53629]
[1753902094429,3.2078,3730.5,3730.1,0.53621]
[1753902094637,3.2078,3730.9,3730.0,3.2078]
[1753902094835,0.53616,3730.5,3730.0,3.2078]
[1753902095031,0.53616,3730.5,3729.9,0.53623]
[1753902095032,0.53621,3730.2,3729.9,3.2078]
[1753902095340,0.53624,3730.0,3729.7,3.2078]
[1753902095729,0.53621,3730.2,3729.7,3.2078]
[1753902095928,3.2078,3730.4,3729.3,3.2078]
[1753902096134,1.34078,3729.5,3727.2,4.54938]
[1753902096333,0.53642,3728.8,3728.3,3.2078]
[1753902096533,3.2078,3729.1,3727.2,3.2078]
[1753902096534,0.5365,3728.2,3727.2,3.2078]
[1753902096733,3.2078,3728.3,3727.2,3.2078]
[1753902096938,3.2078,3727.9,3727.1,3.2078]
[1753902097239,3.2078,3727.5,3726.8,0.40248467]
[1753902097440,3.74446,3727.1,3726.8,0.40248467]
[1753902097638,3.2078,3727.1,3726.8,0.40248467]
[1753902098344,3.2078,3727.7,3726.8,0.40248467]
[1753902098541,3.2078,3727.0,3726.8,0.40248467]
[1753902098742,3.74447,3727.0,3726.8,0.40248467]
[1753902098938,3.50243951,3726.9,3726.8,0.01598467]
[1753902099436,8.50243951,3726.9,3726.8,0.01598467]
[1753902099639,0.53668,3726.9,3726.8,0.01598467]
[1753902099837,3.2078,3727.0,3726.8,0.01598467]
[1753902100236,3.2078,3727.0,3726.8,0.55266467]
[1753902100439,3.2078,3727.8,3726.8,3.22378467]
[1753902100637,3.2078,3727.9,3727.7,0.53656]
[1753902100840,3.2078,3727.9,3727.5,0.53658]
[1753902101136,3.55980391,3727.8,3727.3,0.53661]
[1753902101341,3.2078,3727.5,3727.3,0.53661]
[1753902101739,3.2078,3727.5,3725.6,22.248]
[1753902101740,0.53676,3726.3,3726.2,3.2078]
[1753902101939,3.2078,3726.3,3724.2,3.2078]
[1753902102144,3.2078,3725.3,3725.2,0.53691]
[1753902102437,0.04671749,3727.5,3723.8,3.08842892]
[1753902102438,3.2078,3725.8,3725.5,0.53687]
[1753902103543,3.2078,3726.1,3726.0,0.53681]
[1753902103939,3.2078,3726.7,3726.0,5.0]
[1753902104245,3.2078,3727.8,3726.5,3.2078]
[1753902104434,3.2078,3727.8,3725.9,1.34204]
[1753902104435,3.45663908,3728.1,3727.0,3.2078]
[1753902104637,0.53649,3728.2,3727.2,0.53663]
[1753902104844,3.2078,3727.8,3726.6,3.2078]
[1753902105040,3.2078,3727.8,3726.9,0.53667]
[1753902105240,3.51519234,3728.6,3727.7,3.2078]
[1753902105433,3.2078,3728.9,3727.8,3.2078]
[1753902105638,3.2078,3728.9,3727.8,3.74434]
[1753902105837,1.3407,3729.7,3728.2,3.2078]
[1753902106043,0.53637,3729.1,3728.6,3.2078]
[1753902106442,3.2078,3730.6,3728.6,8.2078]
[1753902106647,3.2078,3731.4,3730.4,3.2078]
[1753902106848,0.53611,3730.9,3730.1,3.74401]
[1753902107140,3.2078,3730.9,3730.1,3.2078]
[1753902107346,0.5362,3730.2,3730.1,3.2078]
[1753902107744,0.53612,3730.8,3730.1,3.74401]
[1753902108246,3.2078,3730.9,3730.1,3.74401]
[1753902108247,3.2078,3730.9,3730.1,3.2078]
[1753902108441,3.2078,3730.9,3730.2,0.53619]
[1753902108642,3.2078,3731.8,3730.5,3.2078]
[1753902108938,0.53611,3730.9,3730.4,3.2078]
[1753902109247,0.5361,3731.0,3730.8,3.2078]
[1753902109450,1.34013,3731.3,3730.2,3.2078]
[1753902109642,0.53622,3730.1,3729.2,22.469]
[1753902109841,0.53622,3730.1,3730.0,3.2078]
[1753902110041,7.36399699,3734.2,3730.3,1.34047]
[1753902110042,8.66207755,3733.3,3730.3,1.34047]
[1753902110344,0.53592,3732.3,3731.9,3.2078]
[1753902110647,3.2078,3733.0,3731.9,3.2078]
[1753902110836,0.18766854,3733.9,3732.7,3.2078]
[1753902111039,3.2078,3734.3,3733.1,3.2078]
[1753902111247,0.53571,3733.7,3733.1,3.2078]
[1753902111446,0.53579,3733.1,3732.0,3.2078]
[1753902111648,0.53579,3733.1,3732.5,3.2078]
[1753902111946,0.53594,3732.1,3731.3,3.2078]
[1753902112148,0.53592,3732.2,3731.7,3.2078]
[1753902112444,0.53595,3732.0,3731.7,3.2078]
[1753902112749,0.53598,3731.8,3731.3,3.2078]
[1753902112951,0.53602,3731.5,3731.3,3.2078]
[1753902113548,0.53603,3731.5,3730.9,3.2078]
[1753902113848,0.53607,3731.2,3731.0,3.2078]
[1753902114047,0.53607,3731.2,3730.4,3.2078]
[1753902114245,3.2078,3731.3,3730.4,3.2078]
[1753902114648,3.50716994,3731.2,3729.8,1.74279094]
[1753902114842,3.2078,3732.0,3731.1,3.2078]
[1753902115041,38.626,3732.4,3730.1,3.2078]
[1753902115042,0.53613,3730.8,3730.1,3.2078]
[1753902115241,3.2078,3731.4,3730.5,3.2078]
[1753902115438,3.2078,3732.0,3731.1,3.2078]
[1753902115643,3.2078,3732.9,3731.5,3.2078]
[1753902115953,0.53587,3732.5,3732.2,3.2078]
[1753902116249,0.53603,3731.5,3730.9,3.2078]
[1753902116446,3.43739018,3732.4,3731.4,0.53603]
[1753902116752,0.53595,3732.0,3731.1,0.53609]
[1753902116949,3.74375,3732.1,3731.3,3.74385]
[1753902117151,0.53596,3732.0,3731.3,3.2078]
[1753902117350,0.53604,3731.6,3731.3,3.2078]
[1753902117549,3.2078,3732.1,3731.2,3.2078]
[1753902118050,1.33977,3732.5,3720.7,7.64687137]
[1753902118051,0.53611,3731.0,3730.8,3.2078]
[1753902118249,3.2078,3731.2,3730.2,3.2078]
[1753902118449,6.65227575,3732.4,3731.0,0.53611]
[1753902118654,0.53613,3730.9,3730.2,0.53622]
[1753902118852,3.2078,3731.1,3730.1,3.2078]
[1753902119151,0.53618,3730.5,3730.1,3.2078]
[1753902119548,0.53618,3730.6,3730.1,3.2078]
[1753902119856,3.74397,3730.7,3730.1,3.2078]
[1753902120056,3.2078,3730.9,3730.0,3.2078]
[1753902120249,0.53626,3730.1,3729.1,3.2078]
[1753902120458,1.34075,3729.8,3728.7,3.2078]
[1753902120755,0.53644,3728.8,3728.7,3.2078]
[1753902120942,1.34054,3730.4,3728.7,3.2078]
[1753902120943,3.49633794,3729.7,3728.7,3.2078]
[1753902121144,40.8,3729.9,3728.9,0.53642]
[1753902121348,0.53636,3729.4,3728.8,3.2078]
[1753902121544,3.2078,3729.5,3728.4,3.74429]
[1753902121855,0.53646,3728.7,3728.1,0.53654]
[1753902122043,3.2078,3728.9,3728.0,3.2078]
[1753902122245,2.687,3731.4,3727.4,38.62]
[1753902122246,3.2078,3729.4,3728.4,3.2078]
[1753902122449,5.36719,3731.6,3729.0,3.2078]
[1753902122450,3.2078,3730.1,3729.0,3.2078]
[1753902122753,0.53639,3729.3,3729.1,3.2078]
[1753902122952,0.53636,3729.4,3728.9,3.2078]
[1753902123247,3.2078,3730.1,3728.9,3.2078]
[1753902123248,0.53638,3729.2,3728.9,3.2078]
[1753902123650,0.53646,3728.8,3728.2,3.2078]
[1753902123856,3.2078,3729.1,3728.2,3.2078]
[1753902124157,0.53648,3728.6,3728.2,3.2078]
[1753902124356,3.2078,3729.1,3728.2,3.2078]
[1753902124357,0.53651,3728.4,3728.2,3.2078]
[1753902124656,0.53657,3728.0,3727.6,3.74442]
[1753902125150,0.53657,3728.0,3727.6,3.74441]
[1753902125450,0.53668,3727.3,3727.1,3.2078]
[1753902125657,3.2078,3727.8,3727.1,3.2078]
[1753902125852,6.73950771,3728.6,3727.5,0.53663]
[1753902126059,0.53667,3727.3,3727.2,3.2078]
[1753902126355,0.53666,3727.4,3727.2,3.2078]
[1753902126558,0.53666,3727.4,3726.8,0.40248467]
[1753902126559,0.53669,3727.2,3727.1,3.2078]
[1753902126848,0.53664,3727.5,3727.1,3.74449]
[1753902127049,3.2078,3728.7,3727.1,3.2078]
[1753902127256,0.5365,3728.5,3728.1,0.53655]
[1753902127452,3.2078,3728.7,3727.9,3.2078]
[1753902127453,3.74427,3728.7,3728.3,0.53652]
[1753902127652,1.34122,3728.6,3727.9,3.2078]
[1753902127854,1.34122,3728.6,3727.5,0.53664]
[1753902128048,3.2078,3728.3,3727.2,3.2078]
[1753902128251,0.53648,3728.7,3728.2,0.53654]
[1753902128450,1.34088,3729.6,3726.8,0.40248467]
[1753902128451,3.2078,3729.7,3728.5,3.2078]
[1753902128652,3.2078,3730.4,3729.0,3.2078]
[1753902128856,1.34064,3730.2,3729.3,0.53638]
[1753902129052,6.70234938,3730.4,3729.4,3.2078]
[1753902129247,0.53632,3729.8,3729.4,0.53636]
[1753902129453,3.2078,3729.5,3639.9,8.884]
[1753902129668,0.53701,3725.0,3724.4,3.2078]
[1753902129860,3.2078,3725.1,3724.4,3.2078]
[1753902130055,0.53705,3724.7,3724.4,3.2078]
[1753902130358,0.53702,3724.9,3724.0,3.2078]
[1753902130558,3.44499544,3725.8,3724.0,3.2078]
[1753902130559,0.53705,3724.7,3724.0,3.2078]
[1753902130754,3.2078,3725.3,3724.0,3.2078]
[1753902130954,0.53703,3724.9,3724.4,3.2078]
[1753902131161,1.34237,3725.4,3724.5,3.2078]
[1753902131458,0.53704,3724.8,3724.1,0.53713]
[1753902131660,3.2078,3725.2,3724.4,3.2078]
[1753902131855,0.53701,3725.0,3724.4,3.2078]
[1753902132253,0.53699,3725.1,3724.5,0.53707]
[1753902132558,0.53698,3725.2,3724.6,0.53705]
[1753902132760,0.53696,3725.3,3724.8,0.53702]
[1753902133152,3.2078,3726.3,3725.2,0.53696]
[1753902133453,0.53689,3725.8,3724.8,3.2078]
[1753902133660,0.53692,3725.6,3724.8,3.2078]
[1753902133854,3.2078,3725.9,3724.8,3.2078]
[1753902134047,3.2078,3726.0,3724.6,3.2078]
[1753902134252,3.2078,3726.0,3725.1,0.53698]
[1753902134454,3.2078,3726.0,3725.6,0.53691]
[1753902134958,3.74467,3726.0,3724.7,1.34261]
[1753902135158,3.2078,3726.0,3725.6,0.53691]
[1753902135460,0.53693,3725.6,3725.1,0.53698]
[1753902135759,1.34202,3726.4,3724.6,3.2078]
[1753902135760,3.2078,3725.4,3724.7,1.34263]
[1753902136051,3.2078,3725.8,3725.4,0.53694]
[1753902136260,0.53686,3726.0,3725.5,0.53693]
[1753902136454,3.74462,3726.3,3725.8,0.53689]
[1753902136662,1.34217,3726.0,3724.8,3.2078]
[1753902136855,3.2078,3725.0,3724.1,4.55062]
[1753902137055,3.2078,3725.4,3724.8,0.53703]
[1753902137253,3.2078,3725.0,3724.1,3.2078]
[1753902137456,3.2078,3725.4,3724.6,3.74486]
[1753902137751,3.2078,3725.4,3723.6,2.68604]
[1753902137752,3.2078,3725.1,3724.2,3.2078]
[1753902138350,3.2078,3726.0,3724.7,4.55042]
[1753902138554,3.2078,3726.0,3725.1,3.2078]
[1753902138760,3.2078,3725.7,3725.6,0.53692]
[1753902139060,3.2078,3725.7,3724.7,3.2078]
[1753902139258,3.2078,3725.1,3724.3,3.2078]
[1753902139463,3.2078,3725.1,3724.8,0.53704]
[1753902139650,3.2078,3725.1,3724.7,0.53705]
[1753902139856,0.53701,3725.0,3724.7,0.53705]
[1753902140057,3.2078,3725.1,3724.9,0.53702]
[1753902140255,0.53704,3724.9,3724.4,6.21346108]
[1753902140555,3.7448,3725.1,3724.6,0.53705]
[1753902140762,0.53701,3725.0,3724.6,0.53705]
[1753902140963,3.2078,3724.7,3724.2,1.34281]
[1753902141161,3.2078,3725.2,3724.9,0.53702]
[1753902141362,3.2078,3725.2,3724.1,6.21346108]
[1753902141563,3.2078,3725.2,3725.0,0.537]
[1753902141755,3.2078,3725.2,3724.1,6.21346108]
[1753902141956,3.2078,3725.3,3724.2,3.2078]
[1753902142152,3.2078,3724.9,3724.2,1.34281]
[1753902142359,3.2078,3724.5,3724.4,0.53709]
[1753902142555,3.2078,3724.7,3724.4,0.53709]
[1753902142764,3.2078,3725.7,3724.2,1.34281]
[1753902143063,3.2078,3724.9,3724.4,1.34274]
[1753902143364,3.2078,3725.4,3725.3,0.53696]
[1753902143561,3.2078,3726.0,3725.7,0.53689]
[1753902143763,3.2078,3726.0,3725.8,0.53688]
[1753902143956,3.2078,3726.0,3725.9,0.53688]
[1753902144356,3.2078,3726.0,3725.8,0.53688]
[1753902146261,3.2078,3726.0,3725.5,1.34234]
[1753902146461,3.2078,3726.0,3725.9,0.53688]
[1753902146960,3.2078,3726.0,3725.8,0.53689]
[1753902147366,3.2078,3726.0,3725.7,0.5369]
[1753902147756,3.2078,3726.0,3725.0,1.34251]
[1753902147962,3.2078,3725.5,3724.8,1.3426]
[1753902148166,3.74474,3725.5,3725.3,0.53695]
[1753902148364,0.53695,3725.4,3725.1,0.53699]
[1753902148566,3.74474,3725.5,3725.2,0.53697]
[1753902148764,3.2078,3725.5,3725.3,0.53695]
[1753902148963,3.2078,3725.5,3725.3,0.53696]
[1753902149165,0.53698,3725.3,3725.0,0.537]
[1753902149366,3.74474,3725.5,3725.2,0.53697]
[1753902149567,1.34223,3725.9,3724.2,3.2078]
[1753902149568,0.53701,3725.1,3724.8,0.53702]
[1753902149860,0.53701,3725.1,3724.2,3.2078]
[1753902149861,3.2078,3724.9,3724.2,3.2078]
[1753902150170,3.74483,3724.9,3724.5,0.53707]
[1753902150471,0.53706,3724.7,3724.3,0.5371]
[1753902150772,3.2078,3724.4,3723.5,4.55087]
[1753902151065,3.2078,3724.4,3723.5,3.2078]
[1753902151464,3.74497,3723.9,3722.9,1.34325]
[1753902151867,3.2078,3723.9,3723.7,0.53719]
[1753902152065,40.8,3724.8,3723.9,0.53717]
[1753902152263,4.55048,3724.6,3723.7,0.53719]
[1753902152464,0.53717,3724.0,3722.3,3.2078]
[1753902152660,3.2078,3724.2,3722.3,3.2078]
[1753902152959,1.34314,3723.4,3722.4,0.53738]
[1753902153268,0.53724,3723.4,3722.4,1.34346]
[1753902153467,3.2078,3723.8,3722.4,1.34346]
[1753902153668,3.2078,3723.4,3722.3,3.2078]
[1753902153870,0.53728,3723.1,3722.3,3.2078]
[1753902154071,0.53728,3723.1,3722.6,0.53735]
[1753902154367,0.53743,3722.2,3721.9,3.2078]
[1753902154572,3.2078,3722.0,3721.0,3.21239771]
[1753902154766,0.53755,3721.3,3721.0,3.21239771]
[1753902155067,0.53752,3721.5,3721.0,3.21239771]